Workbook

Sheet Version (hidden)
A1: Service | B1: =MID(CELL("dateiname"),FIND("[",CELL("dateiname"))+1,FIND("]",CELL("dateiname"))-FIND("[",CELL("dateiname"))-1) -> 660_Auslegungstool_SDA_201030.xlsm
A2: Version: | B2: 1.0

Sheet Funktion
A2: Schlitzdüsendurchlass SDA für den Einbau in Doppelböden
A25: Begehbarer Schlitzdüsendurchlass zum Einbau in Doppelböden in ein- oder zweireihiger Ausführung. Eingriff- und Stolpersicher durch geringe Einzelschlitzbreiten in den Düsen (2mm), sowie geringe Aufbauhöhe der Auflageprofile (1mm). Bestehend aus einem Aluminium Frontprofil mit integrierten Düsenelementen aus ABS zur Erzeugung unterschiedlicher Strahlformen, je nach räumlichen Anforderungen. Fronten in unterschiedlichen Eloxal- oder RAL-Farben mit Auflageprofilen zum luftdichten Einschieben in den Anschlusskasten. Zusätzliches Mitten-Zierprofil aus Aluminium in Eloxal- oder RAL-Farben für filigranere Optik des Schlitzdurchlasses erhältlich. Durch die variable Einstecktiefe des Frontprofiles sind Bodenaufbauten (Bodenplatte und Bodenbelag) von bis zu 50mm möglich. Anschlusskasten aus verzinktem Stahlblech, höhenverstellbar zum Ausgleich unterschiedlicher Bodenhöhen. Ausführung in Bandmontage möglich. Werkzeugloser Ausbau der Frontprofile zur einfachen Reinigung der Front und des Anschlusskastens gemäß VDI 6022. Anschluss über Rund- oder Ovalstutzen möglich.

Sheet Auslegung
A2: Auslegung Kampmann SDA
A4: Eingabefelder sind gelb gekennzeichnet
A5: Ergebnisfelder sind blau gekennzeichnet
A7: Vorgaben | G7: Skizzen der Stutzen
A8: Strömungstechnik und Akustik | B8: Symbol | C8: Einheit | D8: Wert
A9: Länge | B9: L | C9: mm | D9: 1000
A10: Anzahl Schlitze | B10: n | C10: - | D10: 2
D11: 1
D12: 2
A13: Luftvolumenstrom | B13: V°SUP | C13: m³/h | D13: 100
A14: Temperatur Zuluft | B14: tSUP | C14: °C | D14: 22
A15: Temperatur Raum | B15: tRaum | C15: °C | D15: 26
A17: Stutzentyp | B17: - | C17: - | D17: DN80 oder Oval128x51 | E17: Oval207x51
A18: Stutzenanzahl | B18: nStutzen | C18: - | D18: =Rechnung!$H$108 -> 4 | E18: =Rechnung!$H$109 -> 2
A20: Raumdaten
A21: Raumhöhe | B21: H1 | C21: m | D21: 3
A22: Obergrenze Aufenthaltsbereich | B22: H2 | C22: m | D22: 1.8
A23: Raumlänge | B23: LR | C23: m | D23: 10
A24: Raumbreite | B24: BR | C24: m | D24: 10
A26: Akustikdaten
A27: Raumart nach VDI 2081 | D27: Großraumbüro
D28: Einzelbüro
D29: Großraumbüro
D30: Werkstätten
D31: Ruheraum, Pausenraum
D32: Untersuchungsraum Krankenhaus
D33: Rundfunk-, Fernsehstudio
D34: Chemielabor
D35: Wasch- und WC-Raum, Umkleide
D36: EDV-Raum
D37: Konzertsaal
D38: Lesesaal
D39: Museum
D40: Küche
D41: Theater, Kino
D42: Klassen- Seminarraum
D43: Gaststätte
D44: kein Typ
D45: Konferenzraum
D46: Hotelzimmer
D47: Hörsaal
D48: Bettenzimmer Krankenhaus
D49: Verkaufsraum
D50: Sporthalle
A52: Abstand zur Schallquelle | B52: r | C52: m | D52: 3
A54: Berechnung strömungstechnischer und akustischer Daten
A55: Luftlenkeinstellung | B55: - | C55: - | D55: einseitig 20° zur Vertikalen in Richtung Wand
A56: Druckverlust | B56: Δpt | C56: Pa | D56: =Rechnung!$C$58 -> 10.72634757
A57: Vertikale Wurfhöhe | B57: yv | C57: m | D57: =IF(Rechnung!$C$73-D21>0,"",IF(D14>=D15,"-",Rechnung!$C$73)) -> 
A58: Nahzone* | B58: LN | C58: m | D58: =Rechnung!G77 -> 
A59: Geschwindigkeit im Fußbodenbereich ab Nahzone | B59: vx1 | C59: m/s | D59: =Rechnung!G76 -> 
A60: Zugluftrisiko ab Nahzone** | B60: DR1 | C60: % | D60: =Rechnung!H75 -> 0
A61: Kritischer Strahlweg | B61: xkr | C61: m | D61: =IF(Rechnung!$C$75<D23,Rechnung!$C$75,"größer Raumlänge") -> 0.8317256013
A62: Geschwindigkeit nach Ablösen an Xkr. | B62: vx2 | C62: m/s | D62: =IF(Rechnung!$C$75<D23,Rechnung!$C$78,"-") -> 0.2209697507
A63: Zugluftrisiko im Aufenthaltsbereich** | B63: DR2 | C63: % | D63: =IF(Rechnung!$C$75<D23,Rechnung!$C$80,"-") -> 16.60718981
A64: Resultierende Raumkategorie | B64: RAL | C64: [-] | D64: =Rechnung!$C$69 -> B
A65: Schallleistungspegel, Zuluftdurchlass | B65: LWA_SUP | C65: dB(A) | D65: =Rechnung!$D$57 -> < 25
A66: Schallldruckpegel in o.g. Entfernung zum Luftdurchlass | B66: LPA_SUP | C66: dB(A) | D66: =IF(D65="< 25","",D65+Rechnung!$Z$32) -> 
A67: * Abstand zur Wand bei einem wandnahen Einbau (< 0,3m) des Auslasses
A68: ** Berechnung gemäß DIN EN ISO 7730
A71: Oktavspektrum Schallleistung | B71: LW_Okt | C71: dB
B72: LW, 125 | C72: dB | D72: =IF($D$65="< 25","",Rechnung!$AI$31) -> 
B73: LW, 250 | C73: dB | D73: =IF($D$65="< 25","",Rechnung!$AJ$31) -> 
B74: LW, 500 | C74: dB | D74: =IF($D$65="< 25","",Rechnung!$AK$31) -> 
B75: LW, 1000 | C75: dB | D75: =IF($D$65="< 25","",Rechnung!$AL$31) -> 
B76: LW, 2000 | C76: dB | D76: =IF($D$65="< 25","",Rechnung!$AM$31) -> 
B77: LW, 4000 | C77: dB | D77: =IF($D$65="< 25","",Rechnung!$AN$31) -> 
B78: LW, 8000 | C78: dB | D78: =IF($D$65="< 25","",Rechnung!$AO$31) -> 

Sheet Datenblatt
A2: Projekt: | B2: Hier Angaben zum Projekt.
A3: Beschreibung: | B3: Hier zusätzliche Informationen.
A4: Sachbearbeiter | B4: Hier Namen eintragen. | E4: =TODAY() -> 2021-01-04
A6: Länge | B6: L | C6: mm | D6: =Auslegung!D9 -> 1000
A7: Anzahl Schlitze | B7: n | C7: - | D7: =Auslegung!$D$10 -> 2
A8: Stutzentyp | B8: - | C8: - | D8: =Auslegung!D17 -> DN80 oder Oval128x51 | E8: =Auslegung!E17 -> Oval207x51
A9: Anzahl Stutzen | B9: nStutzen | C9: - | D9: =Auslegung!D18 -> 4 | E9: =Auslegung!E18 -> 2
A10: Luftvolumenstrom | B10: V°SUP | C10: m³/h | D10: =Auslegung!D13 -> 100
A11: Temperatur Zuluft | B11: tSUP | C11: °C | D11: =Auslegung!D14 -> 22
A12: Temperatur Raum | B12: tRaum | C12: °C | D12: =Auslegung!D15 -> 26
A14: Raumdaten
A15: Raumhöhe | B15: H1 | C15: m | D15: =Auslegung!D21 -> 3
A16: Obergrenze Aufenthaltsbereich | B16: H2 | C16: m | D16: =Auslegung!D22 -> 1.8
A17: Raumlänge | B17: LR | C17: m | D17: =Auslegung!D23 -> 10
A18: Raumbreite | B18: BR | C18: m | D18: =Auslegung!D24 -> 10
A20: Strömungstechnik und Akustik
A21: =Auslegung!A55 -> Luftlenkeinstellung | B21: - | C21: - | D21: =Auslegung!D55 -> einseitig 20° zur Vertikalen in Richtung Wand
A22: =Auslegung!A56 -> Druckverlust | B22: Δpt | C22: Pa | D22: =Auslegung!D56 -> 10.72634757
A23: =Auslegung!A57 -> Vertikale Wurfhöhe | B23: yv | C23: m | D23: =Auslegung!$D$57 -> 
A24: Nahzone* | B24: LN | C24: m | D24: =Auslegung!$D$58 -> 
A25: =Auslegung!A59 -> Geschwindigkeit im Fußbodenbereich ab Nahzone | B25: vx1 | C25: m/s | D25: =Auslegung!D59 -> 
A26: =Auslegung!A60 -> Zugluftrisiko ab Nahzone** | B26: DR1 | C26: % | D26: =Auslegung!D60 -> 0
A27: =Auslegung!A61 -> Kritischer Strahlweg | B27: xkr | C27: m | D27: =Auslegung!D61 -> 0.8317256013
A28: =Auslegung!A62 -> Geschwindigkeit nach Ablösen an Xkr. | B28: vx2 | C28: m/s | D28: =Auslegung!D62 -> 0.2209697507
A29: =Auslegung!A63 -> Zugluftrisiko im Aufenthaltsbereich** | B29: DR2 | C29: % | D29: =Auslegung!D63 -> 16.60718981
A30: =Auslegung!A64 -> Resultierende Raumkategorie | B30: RAL | C30: [-] | D30: =Auslegung!D64 -> B
A31: =Auslegung!A65 -> Schallleistungspegel, Zuluftdurchlass | B31: LWA_SUP | C31: dB(A) | D31: =Auslegung!D65 -> < 25
A32: =Auslegung!A66 -> Schallldruckpegel in o.g. Entfernung zum Luftdurchlass | B32: LPA_SUP | C32: dB(A) | D32: =Auslegung!D66 -> 
A33: * Abstand zur Wand bei einem wandnahen Einbau (< 0,3m) des Auslasses
A34: ** Berechnung gemäß DIN EN ISO 7730
A36: Oktavspektrum Schallleistung
B37: LW, 125 | C37: dB | D37: =Auslegung!D72 -> 
B38: LW, 250 | C38: dB | D38: =Auslegung!D73 -> 
B39: LW, 500 | C39: dB | D39: =Auslegung!D74 -> 
B40: LW, 1000 | C40: dB | D40: =Auslegung!D75 -> 
B41: LW, 2000 | C41: dB | D41: =Auslegung!D76 -> 
B42: LW, 4000 | C42: dB | D42: =Auslegung!D77 -> 
B43: LW, 8000 | C43: dB | D43: =Auslegung!D78 -> 

Sheet Rechnung (hidden)
B2: SDA Konstanten - BA Jens Knöpker
B4: Bearbeiter: | C4: A. Lühn
B5: Datum | C5: 2020-03-31
B8: Eindringtiefe Wandstrahl | J8: Luftgeschwindigkeit Bodenstrahl | P8: Kritischer Strahlweg Deckenstrahl | V8: Schallleistungspegel | AH8: Unbewertete Schallleistungspegel in den einzelnen Terz- und Oktavbändern
V12: K1 | W12: -77.26750649
B13: K1 | C13: 0.02059896 | J13: K1 | K13: 0.0023847 | V13: K2 | W13: 55.13959857
B14: K2 | C14: 1.28734816 | J14: K2 | K14: 0.4 | P14: K1 | Q14: 5.04917119
B15: K3 | C15: 0.40338908 | J15: K3 | K15: 0.42870588 | P15: K2 | Q15: 1.54350184
P16: K3 | Q16: 0.20309315 | V16: Luftseitiger Druckverlust
B18: Luftgeschwindigkeiten Wandstrahl | J18: Zugluftrisiko Bodenstrahl | P18: Luftgeschwindigkeit Deckenstrahl
V20: K1 | W20: 0.0047 | AH20: k1 | AI20: -28.8506622 | AJ20: -42.53190003 | AK20: -38.51603433 | AL20: -41.43047334 | AM20: -55.0207106 | AN20: -48.68125954 | AO20: -48.78837078 | AP20: -66.37810665 | AQ20: -81.19252645 | AR20: -97.03594755 | AS20: -107.2126747 | AT20: -112.3725108 | AU20: -109.3026095 | AV20: -115.661777 | AW20: -109.8706019 | AX20: -81.00291415 | AY20: -41.51465923 | AZ20: -12.26402985 | BA20: 7.68470467 | BB20: 17.82453271 | BC20: 22.24073205
V21: K2 | W21: 1.9767 | AH21: k2 | AI21: 29.83874212 | AJ21: 35.36351278 | AK21: 33.42157182 | AL21: 36.4714345 | AM21: 43.14154516 | AN21: 40.66991648 | AO21: 41.6204512 | AP21: 48.73988584 | AQ21: 54.13994522 | AR21: 60.48469232 | AS21: 64.07319978 | AT21: 65.00391735 | AU21: 63.35472716 | AV21: 66.00006412 | AW21: 64.59257788 | AX21: 48.65921702 | AY21: 28.1726772 | AZ21: 13.89673526 | BA21: 4.903462563 | BB21: 0.694775179 | BC21: -0.2391934761
AH22: k3 | AI22: 2.726303678 | AJ22: -0.2063494529 | AK22: -0.2467503717 | AL22: -7.405923757 | AM22: -14.7607534 | AN22: -15.282255 | AO22: -18.03795063 | AP22: -16.07548071 | AQ22: -15.07158356 | AR22: -18.92922761 | AS22: -21.97307821 | AT22: -22.6351493 | AU22: -24.80972416 | AV22: -21.83392509 | AW22: -28.36962747 | AX22: -18.50958106 | AY22: -8.086563666 | AZ22: -2.353388012 | BA22: 1.705368099 | BB22: 2.745287636 | BC22: 3.025813327
J23: K1 | K23: 0.05828148
J24: K2 | K24: 0.12111263 | P24: K1 | Q24: 0.86472391
B25: K1 | C25: 0.02557027 | J25: K3 | K25: 0.70602341 | P25: K2 | Q25: 1.0241943
B26: K2 | C26: 0.4 | J26: K4 | K26: 0.08085221 | P26: K3 | Q26: 0.59373799
B27: K3 | C27: 49.17299126 | J27: K5 | K27: 1.46397716 | Z27: Nachhallzeit | AA27: Richtungdfaktor | AB27: Raumvolumen | AC27: Absoprtionsfläche | AH27: Terzbänder | AI27: 100 | AJ27: 125 | AK27: 160 | AL27: 200 | AM27: 250 | AN27: 315 | AO27: 400 | AP27: 500 | AQ27: 630 | AR27: 800 | AS27: 1000 | AT27: 1250 | AU27: 1600 | AV27: 2000 | AW27: 2500 | AX27: 3150 | AY27: 4000 | AZ27: 5000 | BA27: 6300 | BB27: 8000 | BC27: 10000
B28: K4 | C28: 4.0341059 | V28: T[s] nach VDI 2081 | Z28: TN | AA28: Q | AB28: V | AC28: A | AI28: =AI$20+AI$21*LOG($C$56)+AI$22*LOG(Auslegung!$D$9*Auslegung!$D$10/1000) -> 22.66516482 | AJ28: =AJ$20+AJ$21*LOG($C$56)+AJ$22*LOG(Auslegung!$D$9*Auslegung!$D$10/1000) -> 17.48753006 | AK28: =AK$20+AK$21*LOG($C$56)+AK$22*LOG(Auslegung!$D$9*Auslegung!$D$10/1000) -> 18.19193443 | AL28: =AL$20+AL$21*LOG($C$56)+AL$22*LOG(Auslegung!$D$9*Auslegung!$D$10/1000) -> 18.3039947 | AM28: =AM$20+AM$21*LOG($C$56)+AM$22*LOG(Auslegung!$D$9*Auslegung!$D$10/1000) -> 13.83205104 | AN28: =AN$20+AN$21*LOG($C$56)+AN$22*LOG(Auslegung!$D$9*Auslegung!$D$10/1000) -> 15.81529147 | AO28: =AO$20+AO$21*LOG($C$56)+AO$22*LOG(Auslegung!$D$9*Auslegung!$D$10/1000) -> 16.49356317 | AP28: =AP$20+AP$21*LOG($C$56)+AP$22*LOG(Auslegung!$D$9*Auslegung!$D$10/1000) -> 11.59029551 | AQ28: =AQ$20+AQ$21*LOG($C$56)+AQ$22*LOG(Auslegung!$D$9*Auslegung!$D$10/1000) -> 6.252617781 | AR28: =AR$20+AR$21*LOG($C$56)+AR$22*LOG(Auslegung!$D$9*Auslegung!$D$10/1000) -> 0.0274651089 | AS28: =AS$20+AS$21*LOG($C$56)+AS$22*LOG(Auslegung!$D$9*Auslegung!$D$10/1000) -> -4.968785789 | AT28: =AT$20+AT$21*LOG($C$56)+AT$22*LOG(Auslegung!$D$9*Auslegung!$D$10/1000) -> -8.746663937 | AU28: =AU$20+AU$21*LOG($C$56)+AU$22*LOG(Auslegung!$D$9*Auslegung!$D$10/1000) -> -9.133299598 | AV28: =AV$20+AV$21*LOG($C$56)+AV$22*LOG(Auslegung!$D$9*Auslegung!$D$10/1000) -> -10.10231418 | AW28: =AW$20+AW$21*LOG($C$56)+AW$22*LOG(Auslegung!$D$9*Auslegung!$D$10/1000) -> -8.66985842 | AX28: =AX$20+AX$21*LOG($C$56)+AX$22*LOG(Auslegung!$D$9*Auslegung!$D$10/1000) -> -3.904303101 | AY28: =AY$20+AY$21*LOG($C$56)+AY$22*LOG(Auslegung!$D$9*Auslegung!$D$10/1000) -> 3.915576055 | AZ28: =AZ$20+AZ$21*LOG($C$56)+AZ$22*LOG(Auslegung!$D$9*Auslegung!$D$10/1000) -> 10.63766613 | BA28: =BA$20+BA$21*LOG($C$56)+BA$22*LOG(Auslegung!$D$9*Auslegung!$D$10/1000) -> 16.52890743 | BB28: =BB$20+BB$21*LOG($C$56)+BB$22*LOG(Auslegung!$D$9*Auslegung!$D$10/1000) -> 19.83134883 | BC28: =BC$20+BC$21*LOG($C$56)+BC$22*LOG(Auslegung!$D$9*Auslegung!$D$10/1000) -> 22.74521008
B29: K5 | C29: 0.63914031 | P29: Zugluftrisiko Deckenstrahl | V29: Raumart | X29: s | Z29: =VLOOKUP(Auslegung!D27,Rechnung!V30:X53,3) -> 0.5 | AA29: 4 | AB29: =Auslegung!$D$21*Auslegung!$D$23*Auslegung!$D$24 -> 300 | AC29: =0.163*AB29/Z29 -> 97.8
J30: Temperaturen Bodenstrahl | V30: Einzelbüro | X30: 0.5 | AH30: Oktavbänder | AI30: 125 | AJ30: 250 | AK30: 500 | AL30: 1000 | AM30: 2000 | AN30: 4000 | AO30: 8000
V31: Großraumbüro | X31: 0.5 | Z31: Pegelminderung | AI31: =IF(10*LOG(10^(0.1*AJ28)+10^(0.1*AK28)+10^(0.1*AI28))<0,0,10*LOG(10^(0.1*AJ28)+10^(0.1*AK28)+10^(0.1*AI28))) -> 24.86771468 | AJ31: =IF(10*LOG(10^(0.1*AM28)+10^(0.1*AN28)+10^(0.1*AL28))<0,0,10*LOG(10^(0.1*AM28)+10^(0.1*AN28)+10^(0.1*AL28))) -> 21.13908513 | AK31: =IF(10*LOG(10^(0.1*AP28)+10^(0.1*AQ28)+10^(0.1*AO28))<0,0,10*LOG(10^(0.1*AP28)+10^(0.1*AQ28)+10^(0.1*AO28))) -> 18.01018274 | AL31: =IF(10*LOG(10^(0.1*AS28)+10^(0.1*AT28)+10^(0.1*AR28))<0,0,10*LOG(10^(0.1*AS28)+10^(0.1*AT28)+10^(0.1*AR28))) -> 1.638491157 | AM31: =IF(10*LOG(10^(0.1*AV28)+10^(0.1*AW28)+10^(0.1*AU28))<0,0,10*LOG(10^(0.1*AV28)+10^(0.1*AW28)+10^(0.1*AU28))) -> 0 | AN31: =IF(10*LOG(10^(0.1*AY28)+10^(0.1*AZ28)+10^(0.1*AX28))<0,0,10*LOG(10^(0.1*AY28)+10^(0.1*AZ28)+10^(0.1*AX28))) -> 11.5992956 | AO31: =IF(10*LOG(10^(0.1*BB28)+10^(0.1*BC28)+10^(0.1*BA28))<0,0,10*LOG(10^(0.1*BB28)+10^(0.1*BC28)+10^(0.1*BA28))) -> 25.17611568
B32: Zugluftrisiken Wandstrahl | V32: Werkstätten | X32: 1.5 | Z32: =10*LOG($AA$29/(4*PI()*Auslegung!$D$52^2)+4/Rechnung!$AC$29) -> -11.17660144
V33: Ruheraum, Pausenraum | X33: 1
P34: K1 | Q34: 0.28475208 | R34: 515.0195833 | S34: Neue Konstanten gerechnet, um auf Basis der Anfanggeschindigkeit an der Decke das DR zu bestimmen. Quelle: I:\EMCO\daten_EK\Bachelor- Masterarbeiten\Jens Knöpker\SDA-19\Messdaten_SDA-19\zur Wand\Auswertung_Deckenstrahl_180807.xlsx | V34: Untersuchungsraum Krankenhaus | X34: 2
J35: K1 | K35: 0.42196995 | P35: K2 | Q35: 0.38340724 | R35: 41.56353843 | V35: Rundfunk-, Fernsehstudio | X35: 0.5
J36: K2 | K36: 1.58376218 | P36: K3 | Q36: 0.57701823 | R36: 0.3842584886 | V36: Chemielabor | X36: 2
B37: K1 | C37: 2.82462493 | J37: K3 | K37: 0.72772974 | P37: K4 | Q37: 1.06230871 | R37: -40.09058082 | V37: Wasch- und WC-Raum, Umkleide | X37: 2
B38: K2 | C38: 1.77027893 | P38: K5 | Q38: 1.07181277 | R38: -0.2422777802 | V38: Schwimmbad | X38: 2
B39: K3 | C39: 0.92654778 | V39: EDV-Raum | X39: 1.5
B40: K4 | C40: 0.14811748 | V40: Konzertsaal | X40: 1.5
B41: K5 | C41: 2.89916785 | P41: Temperaturen Deckenstrahl | V41: Lesesaal | X41: 1
V42: Museum | X42: 1.5
V43: Küche | X43: 1.5
B44: Temperatur Wandstrahl | V44: Theater, Kino | X44: 1
V45: Klassen- Seminarraum | X45: 1
P46: K1 | Q46: 0.39186401 | V46: Gaststätte | X46: 1
P47: K2 | Q47: 1.57097978 | V47: kein Typ | X47: x
P48: K3 | Q48: 0.42108082 | V48: Konferenzraum | X48: 1
B49: K1 | C49: 0.55954947 | V49: Hotelzimmer | X49: 0.5
B50: K2 | C50: 1.1714559 | V50: Hörsaal | X50: 1
B51: K3 | C51: 0.243676389 | V51: Bettenzimmer Krankenhaus | X51: 1
V52: Verkaufsraum | X52: 1
V53: Sporthalle | X53: 2
B55: Übergabe: | D55: Tool | F55: max V°
B56: spez. Volumenstrom | C56: =Auslegung!$D$13/(Auslegung!$D$10*Auslegung!$D$9/1000) -> 50
B57: Schallleistungspegel | C57: =$W$12+$W$13*LOG(Auslegung!$D$13/(Auslegung!$D$10*Auslegung!$D$9/1000))+10*LOG((Auslegung!$D$10*Auslegung!$D$9)/1000) -> 19.42331749 | D57: =IF(C57<25,"< 25",C57) -> < 25 | F57: =10^((48-$W$12-10*LOG(Auslegung!$D$9*Auslegung!$D$10/1000))/Rechnung!$W$13)*Auslegung!$D$9*Auslegung!$D$10/1000 -> 329.8075698 | G57: =10^((18-$W$12-10*LOG(Auslegung!$D$9*Auslegung!$D$10/1000))/Rechnung!$W$13)*Auslegung!$D$9*Auslegung!$D$10/1000 -> 94.22952839
B58: Druckverlust | C58: =$W$20*$C$56^$W$21 -> 10.72634757
B60: Die Bestimmung der Behaglichkeitsparameter erfolgt auf Basis der Bachelorarbeit von Jens Knöpker. Damals wurden jedoch die ersten Prototypen der Kunststoffdüse vermessen, die drei Spalten a 2 mm besitzten. In der finalen Konstruktion sind jedoch nur 2 Spalten a 2,25 mm vorgesehen. Um die Messergebnisse aus der Bachelorarbeit verwendbar zu machen, wird auf Basis der gleichen Austrittsgeschwindigkeit gerechnet. Faktor 0,75! Des Weiteren wurde in der Bachelorarbeit ein 2-Schlitzer vermessen. Deshalb wird in einigen Rechnungen der Faktor Wurzel(1/2) verwendet, um den Einfluss der Luftmenge zu berücksichtigen.
B64: Umrechnungsfaktor | C64: 0.75
B65: spez. V° für Rechnung | C65: =C56/C64 -> 66.66666667
B66: Schlitzanzahl | C66: =Auslegung!D10 -> 2
B67: Untertemperatur | C67: =Auslegung!D15-Auslegung!D14 -> 4
B68: Raumhöhe | C68: =Auslegung!$D$21 -> 3
B69: Raumkategorie | C69: =IF(AND(C80<10,G75<10),"A",IF(AND(C80<20,G75<20),"B",IF(AND(C80<30,G75<30),"C","Außerhalb von C"))) -> B
B71: Deckenstrahl: | D71: Tool | F71: Misch-Quell-Lüftung: | H71: Tool
B73: vertikale Eindringtiefe | C73: =IFERROR(SQRT($C$66/2)*$C$13*($C$65^$C$14)/(($C$67)^Rechnung!$C$15)*M81,1000) -> 3.047328439 | D73: =IF($C$82<=0,C73,"-") -> 3.047328439 | F73: vertikale Eindringtiefe | G73: =IFERROR(SQRT($C$66/2)*$C$13*($C$65^$C$14)/(($C$67)^Rechnung!$C$15)*M81,1000) -> 3.047328439 | H73: =IF($C$82<=0,G73,"-") -> 3.047328439 | L73: Faktor für die Wandstrahl Geschwindigkeit - auf Basis der Bestätigungsmessungen im Mai.2020. A.Lühn
B74: Geschwindigkeit Anfang Decke | C74: =IFERROR(IF(Auslegung!D21-Rechnung!C73>0,"",($C$25*C65*(($C$26/$C$68)^($C$29)-SQRT((($C$67)*$C$27)/(C65^2)*(2.83*SQRT($C$68/$C$26)-1))^$C$28))*SQRT($C$66/2)*M81),1000) -> 0.3730570062 | D74: =IF($C$82<=0,C74,"-") -> 0.3730570062 | F74: Luftgeschwindigkeit im Bodenbereich (Beginn Aufenthaltsbereich) | G74: =IFERROR(IF(Auslegung!D21-Rechnung!G73<0,"",$K$13*$C$65*(1/(1.3*$K$14))^$K$15*SQRT(Auslegung!$D$10/2)),1000) ->  | H74: =IF($C$82<=0,G74,"-") -> 
B75: kritischer Strahlweg | C75: =IFERROR(IF(Auslegung!D21-Rechnung!C73>0,0,$Q$14*$C$74^$Q$15*(1/($C$67))^$Q$16),1000) -> 0.8317256013 | D75: =IF($C$82<=0,C75,"-") -> 0.8317256013 | F75: Zuluftrisiko im Bodenbereich (Beginn Nahzone) | G75: =IFERROR(IF(Auslegung!D21-Rechnung!G73<0,0,$K$23*$C$65*(1/($G$77*$K$24))^$K$25+$K$26*$C$67^$K$27),1000) -> 0 | H75: 0
B76: Luftgeschwindigkeit Ablösepunkt | C76: =IFERROR(IF(Auslegung!D21-Rechnung!C73>0,"",$Q$24*$C$74*(1/($C$75*$Q$25))^$Q$26),1000) -> 0.3548126887 | D76: 0.3548126887 | F76: Grenzgeschwindigkeit für Nahzone | G76: =IFERROR(IF(Auslegung!D21-Rechnung!G73<0,"",0.2),1000) -> 
B77: Lauflänge Decke - Aufenthaltsbereich (45°) | C77: =IFERROR(IF(Auslegung!D21-Rechnung!C73>0,"",(Auslegung!$D$21-Auslegung!$D$22)/SIN(45/180*PI())),1000) -> 1.697056275 | D77: 1.697056275 | F77: Nahzone | G77: =IFERROR(IF(Auslegung!D21-Rechnung!G73<0,"",1/((G76/($K$13*$C$65*SQRT(Auslegung!$D$10/2)))^(1/$K$15)*$K$14)),1000) ->  | L77: Schlitzanzahl:
B78: Geschwindigkeit Aufenthaltsbereich | C78: =IFERROR(IF(Auslegung!D21-Rechnung!C73>0,"",$Q$24*$C$76*(1/($C$77*$Q$25))^$Q$26),1000) -> 0.2209697507 | D78: 0.2209697507 | L78: 1 | M78: 0.9571092146
B79: Temperatur Aufenthaltsbereich | C79: =IFERROR(IF(Auslegung!D21-Rechnung!C73>0,"",Auslegung!D15-($Q$46*(1/($Q$47*($C$75+$C$77)))^$Q$48*$C$67)),1000) -> 25.12313357 | D79: 25.12313357 | L79: 2 | M79: 1.161269006
B80: Zugluftrisiko | C80: =IFERROR(IF(Auslegung!D21-Rechnung!C73>0,0,(34-$C$79)*($C$78-0.05)^0.62*(0.37*$C$78*30+3.14)),1000) -> 16.60718981 | D80: 16.60718981
B81: Zugluftrisiko nach BA. Fehlerhaft?! | C81: =IFERROR(IF(Auslegung!D21-Rechnung!C73>0,0,$R$34*$C$74*(1/(($C$77+$C$75)*$R$35)^$R$36)+$R$37*($C$67)^$R$38),1000) -> 3.466369833 | D81: 3.466369833 | L81: Übergabe: | M81: =IF(Auslegung!D10=1,Rechnung!M78,Rechnung!M79) -> 1.161269006
B82: Temperaturdifferenz | C82: =Auslegung!D14-Auslegung!D15 -> -4 | D82: K
B85: Stutzen
B86: Länge | C86: =Auslegung!$D$9 -> 1000
B87: Stutzenanzahl | C87: =IF(AND(B90<=$C$86,$C$86<=C90),D90,IF(AND(B91<=$C$86,$C$86<=C91),D91,IF(AND(B92<=$C$86,$C$86<=C92),D92,IF(AND(B93<=$C$86,$C$86<=C93),D93)))) -> 2
B89: Längen mm | D89: Anzahl
B90: 0 | C90: 700 | D90: 1
B91: 701 | C91: 1200 | D91: 2
B92: 1201 | C92: 1700 | D92: 3
B93: 1701 | C93: 2000 | D93: 4
B95: Stutzentyp | C95: =IF(Auslegung!D10=1,"DN80 oder Oval128x51",IF(Auslegung!D10=2,"Oval207x51")) -> Oval207x51 | G95: =Auslegung!$D$9 -> 1000 | H95: =Auslegung!D10 -> 2
G97: Schlitzanzahl | H97: Schlitzbreite | K97: DN80 | L97: Oval128x51 | M97: Oval207x51
G98: 1 | H98: 0 | I98: 700 | J98: =IF(AND(H98<=$G$95,$G$95<=I98),$G$95,0) -> 0 | K98: 1 | L98: 1 | M98: 1
G99: 1 | H99: 701 | I99: 1200 | J99: =IF(AND(H99<=$G$95,$G$95<=I99),$G$95,0) -> 1000 | K99: 2 | L99: 2 | M99: 1
G100: 1 | H100: 1201 | I100: 1700 | J100: 0 | K100: 3 | L100: 3 | M100: 2
G101: 1 | H101: 1701 | I101: 2000 | J101: 0 | K101: 4 | L101: 4 | M101: 2
G102: 2 | H102: 0 | I102: 700 | J102: 0 | K102: 2 | L102: 2 | M102: 1
G103: 2 | H103: 701 | I103: 1200 | J103: 1000 | K103: 4 | L103: 4 | M103: 2
G104: 2 | H104: 1201 | I104: 1700 | J104: 0 | K104: - | L104: - | M104: 3
G105: 2 | H105: 1701 | I105: 2000 | J105: 0 | K105: - | L105: - | M105: 4
G107: Übergabe:
G108: DN80 Oval128x51 | H108: =VLOOKUP(H95&G95,CHOOSE({1,2},G98:G105&J98:J105,K98:K105),2,FALSE) -> 4
G109: Oval207x51 | H109: =VLOOKUP(H95&G95,CHOOSE({1,2},G98:G105&J98:J105,M98:M105),2,FALSE) -> 2
